fUSD/lending_fUSD_20250322
["ID","MTS","AMOUNT","RATE_DAILY","PERIOD"]
[356557935,1742663443867,-40192.0619326,0.0003987,3]
[356557936,1742663443877,-496.277879,0.0003987,14]
[356557937,1742663443886,-151.0,0.0003987,14]
[356557938,1742663443896,-496.277886,0.0003987,14]
[356557940,1742663443905,-500.0,0.00039873,5]
[356557941,1742663443914,-268.0,0.00039879,10]
[356557942,1742663443923,-195239.93657598,0.0003988,2]
[356557943,1742663444230,-8401.6,0.0003988,2]
[356557944,1742663444306,-166363.52326947,0.0003988,2]
[356557945,1742663444317,-151.0,0.0003988,14]
[356557946,1742663444326,-151.0,0.0003988,14]
[356557947,1742663444336,-151.569991,0.0003988,14]
[356557948,1742663444345,-151.55922,0.0003988,14]
[356557949,1742663444354,-153.743039,0.0003988,14]
[356557950,1742663444364,-151.0,0.0003988,14]
[356557951,1742663444373,-151.901583,0.0003988,14]
[356557952,1742663444382,-151.0,0.0003988,14]
[356557953,1742663444391,-151.0,0.0003988,14]
[356557954,1742663444401,-151.0,0.0003988,14]
[356557955,1742663444410,-151.0,0.0003988,14]
[356557956,1742663444419,-171.701121,0.0003988,14]
[356557957,1742663444429,-152.440435,0.0003988,14]
[356557958,1742663444439,-151.490975,0.0003988,14]
[356557959,1742663444448,-151.0,0.0003988,14]
[356557960,1742663444458,-151.0,0.0003988,14]
[356557961,1742663444467,-237.70237,0.0003988,14]
[356557962,1742663444476,-237.70238,0.0003988,14]
[356557963,1742663444486,-3700.0,0.000399,14]
[356557964,1742663444496,-2009.60309663,0.0003998,3]
[356557965,1742663444505,-2009.60309663,0.0003999,3]
[356557966,1742663444515,-16503.654257,0.0004,2]
[356557967,1742663444525,-288.05796845,0.0004,30]
[356557968,1742663444534,-289.11740241,0.0004,120]
[356557969,1742663444545,-1000.0,0.0004,2]
[356557970,1742663444554,-1000.0,0.0004,2]
[356557971,1742663444563,-154.0,0.0004,14]
[356557972,1742663444573,-2009.60309663,0.00040085,3]
[356557973,1742663444582,-839.93,0.00040098,2]
[356557974,1742663444592,-2009.60309663,0.00040105,3]
[356557975,1742663444601,-5087.79608885,0.00040135,15]
[356557976,1742663444611,-8554.21579625,0.00040135,15]
[356557977,1742663444621,-43511.7355898,0.0004048,10]
[356557978,1742663444630,-289.158409,0.0004048,14]
[356557979,1742663444640,-151.867818,0.0004048,14]
[356557980,1742663444650,-152.15492,0.0004048,14]
[356557981,1742663444659,-153.629614,0.0004048,14]
[356557982,1742663444669,-151.0,0.0004048,14]
[356557983,1742663444678,-152.0,0.0004083,3]
[356557984,1742663444688,-500.0,0.00041,2]
[356557985,1742663444697,-2443.4111641,0.00041046,30]
[356557986,1742663444706,-1021.20194995,0.00041095,120]
[356557987,1742663444715,-150.01,0.00041096,2]
[356557988,1742663444724,-150.0,0.00041166,120]
[356557989,1742663444734,-157.38,0.00041419,120]
[356557990,1742663444743,-151.0,0.00041507,14]
[356557991,1742663444753,-151.0,0.00041507,14]
[356557992,1742663444762,-151.0,0.00041507,14]
[356557993,1742663444772,-151.0,0.00041507,14]
[356557994,1742663444781,-151.0,0.00041507,14]
[356557995,1742663444791,-153.502841,0.00041507,14]
[356557996,1742663444800,-151.0,0.00041507,14]
[356557997,1742663444810,-151.0,0.00041507,14]
[356557998,1742663444819,-1000.0,0.0004153,2]
[356557999,1742663444828,-1063.0,0.0004154,30]
[356558000,1742663444838,-5087.79608885,0.00041557,15]
[356558001,1742663444847,-8554.21579625,0.00041557,15]
[356558002,1742663444857,-475.42747617,0.00041742,4]
[356558003,1742663444866,-150.0,0.00041959,30]
[356558004,1742663444874,-160.40653031,0.00041959,30]
[356558005,1742663444884,-296.11796835,0.00041959,30]
[356558006,1742663444894,-150.0,0.00041959,30]
[356558007,1742663444903,-165.4379039,0.00041959,30]
[356558008,1742663444912,-3043.83131692,0.00042,120]
[356558009,1742663444921,-2511.17657386,0.00042,120]
[356558010,1742663444930,-2696.66,0.00042,120]
[356558011,1742663444939,-4281.46,0.00042,120]
[356558012,1742663444948,-8268.59,0.00042,120]
[356558013,1742663444957,-3008.94,0.00042,120]
[356558014,1742663444966,-274.42005753,0.00042059,28]
[356558015,1742663444975,-266.95,0.00042069,120]
[356558016,1742663444984,-1654.04,0.00042194,2]
[356558017,1742663444993,-839.93,0.00042361,2]
[356558018,1742663445002,-151.0,0.0004239,14]
[356558019,1742663445011,-157.446835,0.0004239,14]
[356558020,1742663445020,-152.950138,0.0004239,14]
[356558021,1742663445029,-151.0,0.0004239,14]
[356558022,1742663445038,-151.0,0.0004239,14]
[356558023,1742663445047,-151.0,0.0004239,14]
[356558024,1742663445056,-151.0,0.0004239,14]
[356558025,1742663445066,-33000.0,0.0004242,31]
[356558026,1742663445075,-1000.0,0.000425,2]
[356558027,1742663445084,-150.0,0.00042536,120]
[356558028,1742663445093,-3000.0,0.0004278,60]
[356558029,1742663445102,-871.12855317,0.00042835,5]
[356558030,1742663445112,-871.12855316,0.00042835,5]
[356558031,1742663445121,-5000.0,0.000429,15]
[356558032,1742663445131,-10069.8525317,0.00042921,2]
[356558033,1742663445141,-293.0,0.00042959,120]
[356558034,1742663445151,-151.0,0.0004297,14]
[356558035,1742663445162,-151.0,0.0004297,14]
[356558036,1742663445172,-151.0,0.0004297,14]
[356558037,1742663445183,-151.0,0.0004297,14]
[356558038,1742663445193,-5087.79608885,0.00042978,15]
[356558039,1742663445201,-8554.21579625,0.00042978,15]
[356558040,1742663445211,-181327.00800403,0.00043,2]
[356558041,1742663445223,-2825.0824018,0.00043,120]
[356558042,1742663445234,-62248.29456528,0.00043,10]
[356558043,1742663445245,-151.0,0.00043,14]
[356558044,1742663445255,-151.0,0.00043,14]
[356558045,1742663445264,-152.624912,0.00043,14]
[356558046,1742663445274,-154.073073,0.00043,14]
[356558047,1742663445284,-155.0,0.00043,90]
[356558048,1742663445295,-550.0,0.00043,2]
[356558049,1742663445306,-155.0,0.00043324,90]
[356558050,1742663445316,-3000.0,0.00043328,60]
[356558051,1742663445326,-1141.91209774,0.000437,120]
[356558052,1742663445337,-475.42747617,0.00043713,12]
[356558053,1742663445347,-1063.0,0.00043726,30]
[356558054,1742663445357,-3483.8678136,0.00043805,2]
[356558055,1742663445368,-306.2721103,0.00043835,120]
[356558056,1742663445379,-500.0,0.00043835,120]
[356558057,1742663445388,-503.20768511,0.00043835,120]
[356558058,1742663445398,-500.0,0.00043835,120]
[356558059,1742663445407,-500.0,0.00043835,120]
[356558060,1742663445416,-500.0,0.00043835,120]
[356558061,1742663445425,-151.795268,0.00043835,14]
[356558062,1742663445435,-500.0,0.00043835,120]
[356558063,1742663445444,-500.0,0.00043835,120]
[356558064,1742663445453,-522.7106792,0.00043835,120]
[356558065,1742663445464,-500.0,0.00043835,120]
[356558066,1742663445475,-558.53,0.00043835,120]
[356558067,1742663445484,-500.0,0.00043835,120]
[356558068,1742663445494,-500.0,0.00043835,120]
[356558069,1742663445504,-500.0,0.00043835,120]
[356558070,1742663445514,-500.0,0.00043835,120]
[356558071,1742663445524,-551.10245135,0.00043835,120]
[356558072,1742663445533,-500.0,0.00043835,120]
[356558073,1742663445544,-500.0,0.00043835,120]
[356558074,1742663445553,-1270.91,0.00043835,120]
[356558075,1742663445562,-500.0,0.00043835,120]
[356558076,1742663445572,-500.0,0.00043835,120]
[356558077,1742663445581,-500.0,0.00043835,120]
[356558078,1742663445591,-500.0,0.00043835,120]
[356558079,1742663445600,-500.0,0.00043835,120]
[356558080,1742663445610,-500.0,0.00043835,5]
[356558081,1742663445619,-500.0,0.00043835,120]
[356558082,1742663445628,-151.0,0.00043835,14]
[356558083,1742663445637,-529.19743706,0.00043835,120]
[356558084,1742663445647,-500.0,0.00043835,120]
[356558085,1742663445656,-500.0,0.00043835,120]
[356558086,1742663445665,-500.0,0.00043835,120]
[356558087,1742663445675,-428.13550071,0.00043835,120]
[356558088,1742663445685,-500.0,0.00043835,10]
[356558089,1742663445694,-500.0,0.00043835,120]
[356558090,1742663445702,-500.0,0.00043835,120]
[356558091,1742663445711,-500.0,0.00043835,120]
[356558092,1742663445720,-500.0,0.00043835,120]
[356558093,1742663445729,-500.0,0.00043835,120]
[356558094,1742663445738,-500.0,0.00043835,120]
[356558095,1742663445747,-500.0,0.00043835,120]
[356558096,1742663445756,-500.0,0.00043835,120]
[356558097,1742663445764,-500.0,0.00043835,120]
[356558098,1742663445774,-500.0,0.00043835,120]
[356558099,1742663445782,-500.0,0.00043835,120]
[356558100,1742663445791,-548.71,0.00043835,120]
[356558101,1742663445800,-500.0,0.00043835,120]
[356558102,1742663445808,-500.0,0.00043835,120]
[356558103,1742663445817,-500.0,0.00043835,120]
[356558104,1742663445826,-500.0,0.00043835,120]
[356558105,1742663445834,-553.61,0.00043835,120]
[356558106,1742663445843,-500.0,0.00043835,120]
[356558107,1742663445852,-500.0,0.00043835,120]
[356558108,1742663445861,-500.0,0.00043835,120]
[356558109,1742663445869,-500.0,0.00043835,120]
[356558110,1742663445878,-500.0,0.00043835,120]
[356558111,1742663445887,-500.0,0.00043835,120]
[356558112,1742663445896,-597.79,0.00043835,120]
[356558113,1742663445904,-500.0,0.00043835,120]
[356558114,1742663445913,-580.31,0.00043835,120]
[356558115,1742663445922,-500.0,0.00043835,120]
[356558116,1742663445931,-502.73182019,0.00043835,120]
[356558117,1742663445940,-500.0,0.00043835,120]
[356558118,1742663445949,-500.0,0.00043835,120]
[356558119,1742663445958,-2000.0,0.00043835,2]
[356558120,1742663445967,-603.73,0.00043835,120]
[356558121,1742663445976,-500.0,0.00043835,120]
[356558122,1742663445985,-500.0,0.00043835,120]
[356558123,1742663445994,-407.69147,0.00043835,120]
[356558124,1742663446003,-500.0,0.00043835,120]
[356558125,1742663446012,-500.0,0.00043835,120]
[356558126,1742663446154,-500.0,0.00043835,120]
[356558127,1742663446163,-500.0,0.00043835,120]
[356558128,1742663446173,-158.830351,0.00043835,120]
[356558129,1742663446182,-500.0,0.00043835,120]
[356558130,1742663446191,-527.44420354,0.00043835,120]
[356558131,1742663446200,-500.0,0.00043835,120]
[356558132,1742663446209,-500.0,0.00043835,120]
[356558133,1742663446218,-503.81559552,0.00043835,120]
[356558134,1742663446226,-500.0,0.00043835,120]
[356558135,1742663446235,-500.0,0.00043835,120]
[356558136,1742663446244,-500.0,0.00043835,120]
[356558137,1742663446253,-500.0,0.00043835,120]
[356558138,1742663446262,-500.0,0.00043835,120]
[356558139,1742663446271,-500.0,0.00043835,120]
[356558140,1742663446281,-500.0,0.00043835,120]
[356558141,1742663446290,-500.0,0.00043835,120]
[356558142,1742663446304,-500.0,0.00043835,120]
[356558143,1742663446313,-500.0,0.00043835,120]
[356558144,1742663446323,-500.0,0.00043835,120]
[356558145,1742663446332,-500.67125737,0.00043835,120]
[356558146,1742663446342,-500.0,0.00043835,120]
[356558147,1742663446352,-500.0,0.00043835,120]
[356558148,1742663446362,-508.69860818,0.00043835,120]
[356558149,1742663446371,-500.0,0.00043835,120]
[356558150,1742663446380,-500.0,0.00043835,120]
[356558151,1742663446390,-500.0,0.00043835,120]
[356558152,1742663446399,-500.0,0.00043835,120]
[356558153,1742663446409,-500.0,0.00043835,120]
[356558154,1742663446419,-500.0,0.00043835,120]
[356558155,1742663446428,-500.0,0.00043835,120]
[356558156,1742663446437,-500.0,0.00043835,120]
[356558157,1742663446447,-500.0,0.00043835,120]
[356558158,1742663446457,-500.0,0.00043835,120]
[356558159,1742663446466,-500.0,0.00043835,120]
[356558160,1742663446476,-502.65889,0.00043835,120]
[356558161,1742663446486,-500.0,0.00043835,120]
[356558162,1742663446496,-601.98,0.00043835,120]
[356558163,1742663446505,-500.0,0.00043835,120]
[356558164,1742663446516,-500.0,0.00043835,120]
[356558165,1742663446525,-500.0,0.00043835,120]
[356558166,1742663446535,-500.0,0.00043835,120]
[356558168,1742663446545,-500.0,0.00043835,120]
[356558170,1742663446554,-201.76563209,0.00043835,120]
[356558172,1742663446563,-500.0,0.00043835,120]
[356558174,1742663446573,-500.62961001,0.00043835,120]
[356558176,1742663446582,-500.0,0.00043835,120]
[356558177,1742663446591,-500.0,0.00043835,120]
[356558179,1742663446601,-502.55004603,0.00043835,120]
[356558181,1742663446610,-507.06570939,0.00043835,120]
[356558183,1742663446619,-506.25087228,0.00043835,120]
[356558185,1742663446628,-500.0,0.00043835,120]
[356558187,1742663446638,-500.0,0.00043835,120]
[356558189,1742663446647,-500.0,0.00043835,120]
[356558191,1742663446657,-500.0,0.00043835,120]
[356558193,1742663446666,-500.0,0.00043835,120]
[356558195,1742663446675,-500.0,0.00043835,120]
[356558197,1742663446684,-500.0,0.00043835,120]
[356558199,1742663446693,-500.0,0.00043835,120]
[356558201,1742663446702,-500.0,0.00043835,120]
[356558203,1742663446711,-501.2057142,0.00043835,120]
[356558205,1742663446720,-500.0,0.00043835,120]
[356558207,1742663446729,-619.04,0.00043835,120]
[356558209,1742663446738,-500.0,0.00043835,120]
[356558211,1742663446747,-500.0,0.00043835,120]
[356558213,1742663446756,-500.0,0.00043835,120]
[356558215,1742663446765,-500.0,0.00043835,120]
[356558217,1742663446775,-500.0,0.00043835,120]
[356558219,1742663446784,-500.0,0.00043835,120]
[356558221,1742663446793,-500.0,0.00043835,120]
[356558222,1742663446803,-500.0,0.00043835,120]
[356558224,1742663446812,-500.0,0.00043835,120]
[356558226,1742663446822,-500.0,0.00043835,120]
[356558228,1742663446831,-500.0,0.00043835,120]
[356558230,1742663446843,-500.0,0.00043835,120]
[356558232,1742663446852,-500.0,0.00043835,120]
[356558233,1742663446862,-500.0,0.00043835,120]
[356558235,1742663446871,-500.0,0.00043835,120]
[356558237,1742663446880,-500.0,0.00043835,120]
[356558239,1742663446889,-500.0,0.00043835,120]
[356558240,1742663446898,-548.80020514,0.00043835,120]
[356558241,1742663446907,-500.0,0.00043835,120]
[356558242,1742663446916,-500.0,0.00043835,120]
[356558243,1742663446925,-500.0,0.00043835,120]
[356558244,1742663446934,-500.0,0.00043835,120]
[356558245,1742663446943,-500.0,0.00043835,120]
[356558246,1742663446953,-500.0,0.00043835,120]
[356558247,1742663446962,-585.79,0.00043835,120]
[356558248,1742663446972,-500.0,0.00043835,120]
[356558249,1742663446981,-489.63018177,0.00043835,120]
[356558250,1742663446990,-500.0,0.00043835,120]
[356558251,1742663446999,-500.0,0.00043835,120]
[356558252,1742663447009,-503.63,0.00043835,120]
[356558253,1742663447018,-504.75808075,0.00043835,120]
[356558254,1742663447027,-500.0,0.00043835,120]
[356558255,1742663447037,-500.0,0.00043835,120]
[356558256,1742663447046,-500.0,0.00043835,120]
[356558257,1742663447055,-500.0,0.00043835,120]
[356558258,1742663447065,-500.0,0.00043835,120]
[356558259,1742663447074,-200.0,0.00043835,7]
[356558260,1742663447083,-500.0,0.00043835,120]
[356558261,1742663447092,-500.0,0.00043835,120]
[356558262,1742663447102,-500.0,0.00043835,120]
[356558263,1742663447111,-500.0,0.00043835,120]
[356558264,1742663447121,-500.0,0.00043835,120]
[356558265,1742663447130,-500.0,0.00043835,120]
[356558266,1742663447139,-500.0,0.00043835,120]
[356558267,1742663447148,-500.0,0.00043835,120]
[356558268,1742663447157,-500.0,0.00043835,120]
[356558269,1742663447166,-500.0,0.00043835,120]
[356558270,1742663447176,-500.0,0.00043835,120]
[356558271,1742663447185,-572.14975158,0.00043835,120]
[356558272,1742663447194,-503.93563113,0.00043835,120]
[356558273,1742663447204,-500.0,0.00043835,120]
[356558274,1742663447213,-500.0,0.00043835,120]
[356558275,1742663447222,-500.86486252,0.00043835,120]
[356558276,1742663447232,-517.41,0.00043835,120]
[356558277,1742663447242,-500.0,0.00043835,120]
[356558278,1742663447251,-500.0,0.00043835,120]
[356558279,1742663447260,-634.12,0.00043835,120]
[356558280,1742663447269,-500.0,0.00043835,120]
[356558281,1742663447278,-500.0,0.00043835,120]
[356558282,1742663447288,-500.0,0.00043835,120]
[356558283,1742663447303,-500.0,0.00043835,120]
[356558284,1742663447312,-500.0,0.00043835,120]
[356558285,1742663447321,-500.0,0.00043835,120]
[356558286,1742663447331,-500.0,0.00043835,120]
[356558287,1742663447341,-500.0,0.00043835,120]
[356558288,1742663447352,-500.0,0.00043835,120]
[356558289,1742663447362,-159.89077521,0.00043835,120]
[356558290,1742663447373,-500.0,0.00043835,120]
[356558291,1742663447383,-261.92101047,0.00043835,120]
[356558292,1742663447392,-500.0,0.00043835,120]
[356558293,1742663447402,-500.0,0.00043835,120]
[356558294,1742663447413,-500.0,0.00043835,120]
[356558295,1742663447422,-500.0,0.00043835,120]
[356558296,1742663447432,-440.45965037,0.00043835,120]
[356558297,1742663447442,-500.0,0.00043835,120]
[356558298,1742663447451,-500.0,0.00043835,120]
[356558299,1742663447460,-500.0,0.00043835,120]
[356558300,1742663447470,-500.0,0.00043835,120]
[356558301,1742663447479,-500.0,0.00043835,120]
[356558302,1742663447489,-500.0,0.00043835,120]
[356558303,1742663447499,-500.0,0.00043835,120]
[356558304,1742663447509,-500.0,0.00043835,120]
[356558305,1742663447518,-500.0,0.00043835,120]
[356558306,1742663447527,-500.0,0.00043835,120]
[356558307,1742663447536,-500.0,0.00043835,120]
[356558308,1742663447546,-3500.0,0.00043835,10]
[356558309,1742663447556,-500.0,0.00043835,120]
[356558310,1742663447565,-500.0,0.00043835,120]
[356558311,1742663447575,-500.0,0.00043835,120]
[356558312,1742663447584,-629.27,0.00043835,120]
[356558313,1742663447593,-500.0,0.00043835,120]
[356558314,1742663447603,-500.0,0.00043835,120]
[356558315,1742663447613,-500.0,0.00043835,120]
[356558316,1742663447623,-500.0,0.00043835,120]
[356558317,1742663447633,-500.0,0.00043835,120]
[356558318,1742663447643,-500.0,0.00043835,120]
[356558319,1742663447652,-500.0,0.00043835,120]
[356558320,1742663447662,-500.0,0.00043835,120]
[356558321,1742663447672,-500.0,0.00043835,120]
[356558322,1742663447683,-500.0,0.00043835,120]
[356558323,1742663447695,-500.0,0.00043835,120]
[356558324,1742663447705,-500.0,0.00043835,120]
[356558325,1742663447715,-500.0,0.00043835,120]
[356558326,1742663447725,-500.0,0.00043835,120]
[356558327,1742663447734,-500.0,0.00043835,120]
[356558328,1742663447743,-500.0,0.00043835,120]
[356558329,1742663447753,-500.0,0.00043835,120]
[356558330,1742663447762,-500.0,0.00043835,120]
[356558331,1742663447772,-500.0,0.00043835,120]
[356558332,1742663447781,-500.0,0.00043835,120]
[356558333,1742663447792,-538.26946018,0.00043835,120]
[356558334,1742663447803,-629.80789817,0.00043835,120]
[356558335,1742663447814,-189.23464258,0.00043835,120]
[356558336,1742663447823,-500.0,0.00043835,120]
[356558337,1742663447831,-556.61864179,0.00043835,120]
[356558338,1742663447841,-500.0,0.00043835,120]
[356558339,1742663447850,-501.80432696,0.00043835,120]
[356558340,1742663447859,-478.74237335,0.00043835,120]
[356558341,1742663447869,-500.0,0.00043835,120]
[356558342,1742663447877,-500.0,0.00043835,120]
[356558343,1742663447887,-502.00469717,0.00043835,120]
[356558344,1742663447896,-500.0,0.00043835,120]
[356558345,1742663447905,-208.398807,0.00043835,120]
[356558346,1742663447916,-500.0,0.00043835,120]
[356558347,1742663447925,-500.0,0.00043835,120]
[356558348,1742663447934,-500.0,0.00043835,120]
[356558349,1742663447944,-500.0,0.00043835,120]
[356558350,1742663447953,-500.0,0.00043835,120]
[356558351,1742663447962,-500.0,0.00043835,120]
[356558352,1742663447972,-551.68882374,0.00043835,120]
[356558353,1742663447981,-500.0,0.00043835,120]
[356558354,1742663447991,-500.0,0.00043835,120]
[356558355,1742663448000,-500.0,0.00043835,120]
[356558356,1742663448009,-500.0,0.00043835,120]
[356558357,1742663448019,-500.0,0.00043835,120]
[356558358,1742663448028,-500.0,0.00043835,7]
[356558359,1742663448037,-169.006829,0.00043835,120]
[356558360,1742663448047,-500.0,0.00043835,120]
[356558361,1742663448056,-500.0,0.00043835,120]
[356558362,1742663448066,-500.0,0.00043835,120]
[356558363,1742663448075,-500.0,0.00043835,120]
[356558364,1742663448084,-543.79,0.00043835,120]
[356558365,1742663448093,-500.0,0.00043835,120]
[356558366,1742663448103,-613.9,0.00043835,120]
[356558367,1742663448112,-500.0,0.00043835,120]
[356558368,1742663448122,-500.0,0.00043835,120]
[356558369,1742663448131,-500.0,0.00043835,120]
[356558370,1742663448140,-500.0,0.00043835,120]
[356558371,1742663448149,-500.0,0.00043835,120]
[356558372,1742663448159,-500.0,0.00043835,120]
[356558373,1742663448168,-500.0,0.00043835,120]
[356558374,1742663448177,-599.2,0.00043835,120]
[356558375,1742663448186,-500.0,0.00043835,120]
[356558376,1742663448195,-500.0,0.00043835,120]
[356558377,1742663448204,-500.0,0.00043835,20]
[356558378,1742663448213,-500.0,0.00043835,120]
[356558379,1742663448223,-500.0,0.00043835,120]
[356558380,1742663448232,-500.0,0.00043835,120]
[356558381,1742663448241,-500.0,0.00043835,120]
[356558382,1742663448250,-500.0,0.00043835,120]
[356558383,1742663448259,-500.0,0.00043835,120]
[356558384,1742663448269,-500.0,0.00043835,120]
[356558385,1742663448278,-500.0,0.00043835,120]
[356558386,1742663448287,-500.0,0.00043835,120]
[356558387,1742663448302,-500.0,0.00043835,120]
[356558388,1742663448312,-500.0,0.00043835,120]
[356558389,1742663448320,-511.51689646,0.00043835,120]
[356558390,1742663448330,-509.55401576,0.00043835,120]
[356558391,1742663448340,-503.91715016,0.00043835,120]
[356558392,1742663448349,-500.0,0.00043835,120]
[356558393,1742663448359,-500.0,0.00043835,120]
[356558394,1742663448368,-611.8,0.00043835,120]
[356558395,1742663448379,-500.0,0.00043835,120]
[356558396,1742663448390,-500.0,0.00043835,120]
[356558397,1742663448400,-500.0,0.00043835,120]
[356558398,1742663448409,-500.0,0.00043835,120]
[356558399,1742663448419,-625.12,0.00043835,120]
[356558400,1742663448428,-500.0,0.00043835,120]
[356558401,1742663448437,-500.0,0.00043835,120]
[356558402,1742663448446,-500.0,0.00043835,120]
[356558403,1742663448456,-500.0,0.00043835,120]
[356558404,1742663448466,-500.0,0.00043835,120]
[356558405,1742663448475,-500.0,0.00043835,120]
[356558406,1742663448484,-500.0,0.00043835,120]
[356558407,1742663448493,-500.0,0.00043835,120]
[356558408,1742663448503,-500.0,0.00043835,120]
[356558409,1742663448512,-572.13,0.00043835,120]
[356558410,1742663448523,-500.0,0.00043835,120]
[356558411,1742663448533,-639.8,0.00043835,120]
[356558412,1742663448542,-500.0,0.00043835,120]
[356558413,1742663448552,-500.0,0.00043835,120]
[356558414,1742663448561,-500.0,0.00043835,120]
[356558415,1742663448571,-500.0,0.00043835,120]
[356558416,1742663448581,-500.0,0.00043835,120]
[356558417,1742663448591,-500.0,0.00043835,120]
[356558418,1742663448601,-500.0,0.00043835,120]
[356558419,1742663448611,-500.0,0.00043835,120]
[356558420,1742663448620,-500.0,0.00043835,120]
[356558421,1742663448630,-500.0,0.00043835,120]
[356558422,1742663448640,-500.0,0.00043835,120]
[356558423,1742663448649,-500.0,0.00043835,120]
[356558424,1742663448658,-587.82,0.00043835,120]
[356558425,1742663448668,-500.0,0.00043835,120]
[356558426,1742663448678,-1461.73211871,0.00043835,120]
[356558427,1742663448688,-500.0,0.00043835,120]
[356558428,1742663448698,-532.56236551,0.00043835,120]
[356558429,1742663448708,-500.0,0.00043835,120]
[356558430,1742663448717,-500.0,0.00043835,120]
[356558431,1742663448727,-510.78830218,0.00043835,120]
[356558432,1742663448736,-500.0,0.00043835,120]
[356558433,1742663448746,-500.0,0.00043835,120]
[356558434,1742663448755,-500.0,0.00043835,120]
[356558435,1742663448765,-500.0,0.00043835,120]
[356558436,1742663448775,-500.0,0.00043835,120]
[356558437,1742663448784,-500.0,0.00043835,120]
[356558438,1742663448794,-500.0,0.00043835,120]
[356558439,1742663448804,-500.0,0.00043835,120]
[356558440,1742663448814,-500.0,0.00043835,120]
[356558441,1742663448823,-500.0,0.00043835,120]
[356558442,1742663448833,-500.0,0.00043835,120]
[356558443,1742663448842,-513.59409386,0.00043835,120]
[356558444,1742663448851,-500.0,0.00043835,120]
[356558445,1742663448860,-500.0,0.00043835,120]
[356558446,1742663448869,-500.0,0.00043835,120]
[356558447,1742663448879,-500.0,0.00043835,120]
[356558448,1742663448888,-500.0,0.00043835,120]
[356558449,1742663448897,-500.0,0.00043835,120]
[356558450,1742663448906,-500.0,0.00043835,120]
[356558451,1742663448915,-649.56847956,0.00043835,120]
[356558452,1742663448924,-500.0,0.00043835,120]
[356558453,1742663448934,-500.0,0.00043835,120]
[356558454,1742663448943,-500.0,0.00043835,120]
[356558455,1742663448952,-500.0,0.00043835,120]
[356558456,1742663448961,-500.0,0.00043835,120]
[356558457,1742663448970,-500.0,0.00043835,120]
[356558458,1742663448979,-500.0,0.00043835,120]
[356558459,1742663448989,-500.0,0.00043835,120]
[356558460,1742663448998,-500.0,0.00043835,120]
[356558461,1742663449008,-500.0,0.00043835,120]
[356558462,1742663449017,-500.0,0.00043835,120]
[356558463,1742663449131,-500.0,0.00043835,120]
[356558464,1742663449156,-500.0,0.00043835,120]
[356558465,1742663449166,-523.66463251,0.00043835,120]
[356558466,1742663449175,-500.0,0.00043835,120]
[356558467,1742663449185,-500.0,0.00043835,120]
[356558468,1742663449194,-500.0,0.00043835,120]
[356558469,1742663449203,-500.0,0.00043835,120]
[356558470,1742663449213,-500.0,0.00043835,120]